fUSD/lending_fUSD_20260702
["ID","MTS","AMOUNT","RATE_DAILY","PERIOD"]
[426908736,1783003841000,-201.64576125,0.00027551,2]
[426908737,1783003841000,-211.39202586,0.00027551,2]
[426908728,1783003841000,-248.71280734,0.00027551,2]
[426908730,1783003841000,-463.31581061,0.00027551,2]
[426908733,1783003841000,-500.2354415,0.00027551,2]
[426908734,1783003841000,-198.16443608,0.00027551,2]
[426908740,1783003841000,-290.57005018,0.00027551,2]
[426908750,1783003841000,-244.73940062,0.00027551,2]
[426908761,1783003841000,-324.05764555,0.00027551,2]
[426908741,1783003841000,-306.89519691,0.00027551,2]
[426908746,1783003841000,-376.19491378,0.00027551,2]
[426908743,1783003841000,-230.07891307,0.00027551,2]
[426908751,1783003841000,-497.42561469,0.00027551,2]
[426908742,1783003841000,-306.74442674,0.00027551,2]
[426908744,1783003841000,-491.48194447,0.00027551,2]
[426908748,1783003841000,-488.59572597,0.00027551,2]
[426908747,1783003841000,-381.49671466,0.00027551,2]
[426908745,1783003841000,-374.48979882,0.00027551,2]
[426908749,1783003841000,-156.43641278,0.00027551,2]
[426908753,1783003841000,-199.67808095,0.00027551,2]
[426908763,1783003841000,-4921.50128443,0.000276,2]
[426908752,1783003841000,-247.59114268,0.00027551,2]
[426908757,1783003841000,-415.2544763,0.00027551,2]
[426908739,1783003841000,-182.53923308,0.00027551,2]
[426908784,1783003841000,-32395.3,0.00028,2]
[426908776,1783003841000,-174.0,0.00028,2]
[426908801,1783003841000,-1000.0,0.00028396,2]
[426908821,1783003841000,-4921.50128443,0.000287,2]
[426908825,1783003841000,-665.0,0.00028727,5]
[426908827,1783003841000,-683.0,0.00028741,5]
[426908831,1783003841000,-1000.0,0.00028839,2]
[426908829,1783003841000,-1000.0,0.00028799,2]
[426908835,1783003841000,-500.0,0.00028903,60]
[426908834,1783003841000,-2220.74,0.000289,7]
[426908838,1783003841000,-375.0,0.00028932,2]
[426908837,1783003841000,-1000.0,0.00028919,2]
[426908833,1783003841000,-396.39431912,0.000289,15]
[426908828,1783003841000,-1000.0,0.00028758,2]
[426908832,1783003841000,-1000.0,0.00028879,2]
[426908836,1783003841000,-182.14,0.00028906,2]
[426908824,1783003841000,-150.0,0.00028726,5]
[426908840,1783003841000,-912.30159617,0.00028944,2]
[426908848,1783003841000,-500.0,0.00029,7]
[426908847,1783003841000,-500.0,0.00029,7]
[426908849,1783003841000,-500.0,0.00029,7]
[426908850,1783003841000,-500.0,0.00029,7]
[426908841,1783003841000,-1000.0,0.0002896,2]
[426908842,1783003841000,-15464.66565933,0.0002897,6]
[426908843,1783003841000,-4921.50128443,0.00029,2]
[426908844,1783003841000,-178.0,0.00029,2]
[426908851,1783003841000,-500.0,0.00029,7]
[426908845,1783003841000,-3067.55,0.00029,5]
[426908846,1783003841000,-1256.62575978,0.00029,7]
[426908852,1783003841000,-500.0,0.00029,7]
[426908791,1783003841000,-4921.50128443,0.000282,2]
[426908839,1783003841000,-170.09,0.00028935,7]
[426908819,1783003841000,-1000.0,0.00028678,2]
[426908830,1783003841000,-662.0,0.00028806,5]
[426908817,1783003841000,-1000.0,0.00028637,2]
[426908793,1783003841000,-2220.74,0.000282,7]
[426908790,1783003841000,-503.80190059,0.00028167,2]
[426908794,1783003841000,-2988.1,0.00028203,2]
[426908792,1783003841000,-1473.07431822,0.000282,2]
[426908802,1783003841000,-785.35778016,0.000284,2]
[426908795,1783003841000,-500.0,0.00028213,2]
[426908796,1783003841000,-662.0,0.00028226,5]
[426908797,1783003841000,-1000.0,0.00028315,2]
[426908826,1783003841000,-662.0,0.00028729,5]
[426908800,1783003841000,-166.85,0.00028382,2]
[426908798,1783003841000,-672.0,0.00028326,5]
[426908803,1783003841000,-1000.0,0.00028436,2]
[426908805,1783003841000,-1000.0,0.00028476,2]
[426908807,1783003841000,-1000.0,0.00028517,2]
[426908813,1783003841000,-1639.28,0.0002863,2]
[426908799,1783003841000,-1000.0,0.00028355,2]
[426908806,1783003841000,-4921.50128443,0.000285,2]
[426908810,1783003841000,-287.06539537,0.000286,7]
[426908822,1783003841000,-1000.0,0.00028718,2]
[426908818,1783003841000,-156.57,0.0002864,2]
[426908820,1783003841000,-162.05,0.00028695,30]
[426908816,1783003841000,-170.09,0.00028635,30]
[426908815,1783003841000,-169.34,0.00028635,30]
[426908812,1783003841000,-1120.93,0.0002863,2]
[426908804,1783003841000,-684.0,0.00028462,5]
[426908811,1783003841000,-715.44,0.00028623,30]
[426908809,1783003841000,-1000.0,0.00028597,2]
[426908814,1783003841000,-498.43,0.0002863,2]
[426908808,1783003841000,-1000.0,0.00028557,2]
[426908823,1783003841000,-151.0,0.00028726,5]
[426908866,1783003842000,-239.0,0.00029,2]
[426908857,1783003842000,-500.0,0.00029,7]
[426908865,1783003842000,-1000.0,0.00029,2]
[426908864,1783003842000,-532.11,0.00029,7]
[426908861,1783003842000,-500.0,0.00029,7]
[426908862,1783003842000,-500.0,0.00029,7]
[426908854,1783003842000,-500.0,0.00029,7]
[426908856,1783003842000,-500.0,0.00029,7]
[426908860,1783003842000,-500.0,0.00029,7]
[426908859,1783003842000,-500.0,0.00029,7]
[426908858,1783003842000,-500.0,0.00029,7]
[426908863,1783003842000,-500.0,0.00029,7]
[426908855,1783003842000,-500.0,0.00029,7]
[426908867,1783003842000,-154.0,0.00029,4]
[426908853,1783003842000,-500.0,0.00029,7]
[426908869,1783003842000,-154.0,0.00029,4]
[426908884,1783003842000,-790.5766307,0.00016211,2]
[426908881,1783003842000,-23093.08099808,0.00016211,2]
[426908880,1783003842000,-700.0,0.00029196,20]
[426908878,1783003842000,-203791.70484591,0.00029196,20]
[426908876,1783003842000,-154.9324923,0.00029193,7]
[426908879,1783003842000,-497.86827008,0.00029196,20]
[426908868,1783003842000,-154.0,0.00029,4]
[426908875,1783003842000,-684.0,0.00029143,5]
[426908874,1783003842000,-169.34,0.00029135,7]
[426908873,1783003842000,-2000.0,0.00029096,2]
[426908871,1783003842000,-508.0,0.00029025,4]
[426908872,1783003842000,-33361.7046,0.00029096,2]
[426908870,1783003842000,-163.3895558,0.0002901,2]
[426908877,1783003842000,-1000.0,0.00029195,2]
[426908907,1783003843000,-3.06529544,0.00028,2]
[426908906,1783003843000,-730.80675643,0.00027397,2]
[426908901,1783003843000,-156.0,0.00026,2]
[426908904,1783003843000,-352.18752793,0.00027397,2]
[426908903,1783003843000,-477.12169107,0.00027397,2]
[426908902,1783003843000,-156.0,0.00027,2]
[426908899,1783003843000,-176.20568401,0.00016211,2]
[426908900,1783003843000,-219.353884,0.000245,14]
[426908905,1783003843000,-98.50246257,0.00027397,2]
[426908908,1783003843000,-152.93470456,0.00028,2]
[426908909,1783003843000,-270.32,0.0002869,30]
[426908911,1783003843000,-30720.65118,0.00029196,20]
[426908910,1783003843000,-3776.32529544,0.00029196,20]
[426908919,1783003843000,-4921.50128443,0.000293,2]
[426908920,1783003843000,-185.66,0.00029315,2]
[426908921,1783003843000,-2000.0,0.00029447,23]
[426908917,1783003843000,-170.09,0.00029235,2]
[426908918,1783003843000,-417.53046874,0.00029236,2]
[426908915,1783003843000,-579.30758228,0.000292,30]
[426908913,1783003843000,-163.0,0.00029,2]
[426908914,1783003843000,-19666.97954738,0.00029196,20]
[426908916,1783003843000,-156.57,0.00029232,7]
[426908912,1783003843000,-618.47086119,0.00029196,20]
[426908925,1783003844000,-4921.50128443,0.000296,2]
[426908923,1783003844000,-150.0,0.00029534,2]
[426908922,1783003844000,-417.53046874,0.0002951,2]
[426908933,1783003844000,-300.0,0.0003,15]
[426908924,1783003844000,-170.09,0.00029536,30]
[426908926,1783003844000,-200.4694534,0.000296,14]
[426908927,1783003844000,-2220.74,0.000296,7]
[426908928,1783003844000,-170.09,0.00029636,2]
[426908929,1783003844000,-169.34,0.00029636,2]
[426908932,1783003844000,-300.0,0.000299,10]
[426908930,1783003844000,-185.66,0.00029726,2]
[426908936,1783003844000,-340188.0297128,0.0003,30]
[426908934,1783003844000,-401.42976885,0.0003,2]
[426908935,1783003844000,-800.0,0.0003,2]
[426908940,1783003844000,-888.675,0.0003,30]
[426908942,1783003844000,-318.26456347,0.0003,30]
[426908941,1783003844000,-491.62360047,0.0003,30]
[426908943,1783003844000,-8765.58644012,0.0003,30]
[426908944,1783003844000,-768.46734594,0.0003,2]
[426908931,1783003844000,-417.53046874,0.00029784,2]
[426908946,1783003846000,-24059.86331279,0.00017522,2]
[426908947,1783003846000,-169.35,0.00028635,30]
[426908948,1783003846000,-170.09,0.00028635,30]
[426908949,1783003846000,-170.09,0.00029135,7]
[426908950,1783003846000,-31.53265406,0.0003,2]
[426908956,1783003846000,-417.53046874,0.00030058,2]
[426908952,1783003846000,-26625.73155204,0.0003,10]
[426908953,1783003846000,-1247.63946065,0.0003,14]
[426908957,1783003846000,-17670.66245376,0.0003009,2]
[426908951,1783003846000,-10834.54784323,0.0003,3]
[426908954,1783003846000,-800.0,0.0003,2]
[426908955,1783003846000,-1567.49453884,0.0003,2]
[426908959,1783003847000,-5014.61796019,0.0003009,2]
[426908958,1783003847000,-1478.77264254,0.0003009,2]
[426908960,1783003847000,-450.0,0.0003009,2]
[426908964,1783003847000,-25630.65097553,0.0003009,2]
[426908962,1783003847000,-1242.48,0.0003009,2]
[426908963,1783003847000,-1490.89436833,0.0003009,2]
[426908961,1783003847000,-563.23033571,0.0003009,2]
[426908982,1783003956000,-500.0,0.00014999,2]
[426908979,1783003956000,-500.0,0.00014999,2]
[426908980,1783003956000,-500.0,0.00014999,2]
[426908978,1783003956000,-500.0,0.00014999,2]
[426908977,1783003956000,-500.0,0.00014999,2]
[426908975,1783003956000,-500.0,0.00014999,2]
[426908976,1783003956000,-500.0,0.00014999,2]
[426908973,1783003956000,-500.0,0.00014999,2]
[426908971,1783003956000,-500.0,0.00014999,2]
[426908972,1783003956000,-500.0,0.00014999,2]
[426908970,1783003956000,-500.0,0.00014999,2]
[426908968,1783003956000,-500.0,0.00014999,2]
[426908969,1783003956000,-500.0,0.00014999,2]
[426908967,1783003956000,-188.614024,0.00014989,2]
[426908981,1783003956000,-500.0,0.00014999,2]
[426908974,1783003956000,-500.0,0.00014999,2]
[426908984,1783003956000,-500.0,0.00014999,2]
[426908985,1783003956000,-500.0,0.00014999,2]
[426908983,1783003956000,-500.0,0.00014999,2]
[426909002,1783003956000,-500.0,0.00014999,2]
[426909000,1783003956000,-500.0,0.00014999,2]
[426909001,1783003956000,-500.0,0.00014999,2]
[426908998,1783003956000,-586.21142255,0.00014999,2]
[426908996,1783003956000,-257.29129132,0.00014999,2]
[426908995,1783003956000,-500.0,0.00014999,2]
[426908997,1783003956000,-500.0,0.00014999,2]
[426908994,1783003956000,-500.0,0.00014999,2]
[426908999,1783003956000,-500.0,0.00014999,2]
[426908991,1783003956000,-500.0,0.00014999,2]
[426908992,1783003956000,-500.0,0.00014999,2]
[426908990,1783003956000,-500.0,0.00014999,2]
[426908989,1783003956000,-319.92383169,0.00014999,2]
[426908988,1783003956000,-500.0,0.00014999,2]
[426908987,1783003956000,-500.0,0.00014999,2]
[426908986,1783003956000,-500.0,0.00014999,2]
[426908993,1783003956000,-500.0,0.00014999,2]
[426909013,1783003957000,-500.0,0.00014999,2]
[426909010,1783003957000,-500.0,0.00014999,2]
[426909009,1783003957000,-500.0,0.00014999,2]
[426909008,1783003957000,-500.0,0.00014999,2]
[426909003,1783003957000,-500.0,0.00014999,2]
[426909004,1783003957000,-500.0,0.00014999,2]
[426909006,1783003957000,-500.0,0.00014999,2]
[426909012,1783003957000,-621.42188798,0.00014999,2]
[426909005,1783003957000,-500.0,0.00014999,2]
[426909011,1783003957000,-500.0,0.00014999,2]
[426909007,1783003957000,-500.0,0.00014999,2]
[426909015,1783003957000,-500.0,0.00014999,2]
[426909023,1783003957000,-1000.0,0.00014999,2]
[426909021,1783003957000,-1000.0,0.00014999,2]
[426909020,1783003957000,-1000.0,0.00014999,2]
[426909024,1783003957000,500.0,0.00014999,2]
[426909022,1783003957000,-1000.0,0.00014999,2]
[426909016,1783003957000,-500.0,0.00014999,2]
[426909018,1783003957000,-202.61838937,0.00014999,2]
[426909019,1783003957000,-1000.0,0.00014999,2]
[426909017,1783003957000,-500.0,0.00014999,2]
[426909014,1783003957000,-500.0,0.00014999,2]
[426909028,1783003996000,392.13906298,0.00014999,2]
[426909027,1783003996000,500.0,0.00014999,2]
[426909026,1783003996000,231.7488945,0.00014999,2]
[426909025,1783003996000,500.0,0.00014999,2]
[426909029,1783004002000,931.9232723,0.00014999,2]
[426909031,1783004022000,500.0,0.00014999,2]
[426909030,1783004022000,500.0,0.00014999,2]
[426909032,1783004026000,218.60971104,0.00014999,2]
[426909033,1783004027000,414.32546343,0.00014999,2]
[426909035,1783004078000,301.72,0.0003011,120]
[426909044,1783004346000,-193.0,0.000176,2]
[426909045,1783004346000,-500.0,0.000176,2]
[426909043,1783004346000,-4000.0,0.000176,2]
[426909042,1783004346000,-250.0,0.00017324,2]
[426909040,1783004346000,-150.0,0.00016,2]
[426909041,1783004346000,-150.0,0.00017,2]
[426909046,1783004346000,-200.0,0.00017827,2]
[426909055,1783004347000,-150.0,0.00019,2]
[426909057,1783004347000,-175.71,0.00020259,2]
[426909056,1783004347000,-320.14,0.00019355,7]
[426909054,1783004347000,-11855.85611111,0.00018384,2]
[426909052,1783004347000,-250.0,0.00018149,2]
[426909049,1783004347000,-151.0,0.00018,2]
[426909050,1783004347000,-150.0,0.00018,2]
[426909047,1783004347000,-200.0,0.00017827,7]
[426909048,1783004347000,-151.0,0.00018,2]
[426909059,1783004347000,-1118.44159203,0.00021279,2]
[426909051,1783004347000,-600.0,0.00018149,2]
[426909058,1783004347000,-150.0,0.00021,2]
[426909053,1783004347000,-250.0,0.00018327,2]
[426909061,1783004347000,-388.3013634,0.00021499,2]
[426909072,1783004347000,-150.0,0.000229,2]
[426909071,1783004347000,-150.0,0.000228,2]
[426909068,1783004347000,-2880.18182212,0.00022666,2]
[426909070,1783004347000,-219.04743701,0.00022749,2]
[426909069,1783004347000,-150.0,0.000227,2]
[426909067,1783004347000,-150.0,0.000226,2]
[426909062,1783004347000,-250.0,0.00021636,2]
[426909066,1783004347000,-150.0,0.000225,2]
[426909065,1783004347000,-1012.39,0.00022466,2]
[426909064,1783004347000,-235.89518516,0.00022126,2]
[426909063,1783004347000,-150.0,0.00022,2]
[426909060,1783004347000,-172.88839102,0.00021466,2]
[426909073,1783004347000,-150.0,0.00023,2]
[426909074,1783004349000,383.41546002,0.0002016,2]
[426909077,1783004350000,250.0,0.00019065,2]
[426909076,1783004350000,250.0,0.00018356,2]
[426909075,1783004350000,250.0,0.0002016,2]
[426909079,1783004391000,-707.68555549,0.00023065,2]
[426909078,1783004391000,-150.0,0.00023065,2]
[426909080,1783004391000,-150.0,0.00023238,2]
[426909081,1783004391000,-150.0,0.000233,2]
[426909082,1783004391000,-1958.29,0.00023318,2]
[426909083,1783004391000,-1876.75708264,0.00023471,2]
[426909084,1783004446000,500.0,0.00014999,2]
[426909085,1783004446000,500.0,0.00014999,2]
[426909086,1783004447000,500.0,0.00014999,2]
[426909090,1783004448000,500.0,0.00014999,2]
[426909089,1783004448000,500.0,0.00014999,2]
[426909088,1783004448000,500.0,0.00014999,2]
[426909087,1783004448000,500.0,0.00014999,2]
[426909091,1783004449000,500.0,0.00014999,2]
[426909092,1783004449000,500.0,0.00014999,2]
[426909093,1783004461000,-33300.0,0.00018283,2]
[426909094,1783004465000,557789.7654,0.00024557,120]
[426909096,1783004472000,500.0,0.00014999,2]
[426909095,1783004472000,500.0,0.00014999,2]
[426909100,1783004473000,500.0,0.00014999,2]
[426909099,1783004473000,500.0,0.00014999,2]
[426909098,1783004473000,500.0,0.00014999,2]
[426909102,1783004474000,300.13805484,0.00014999,2]
[426909101,1783004474000,500.0,0.00014999,2]
[426909107,1783004602000,5183.5825,0.00024058,120]
[426909109,1783004673000,780.0,0.00030136,120]
[426909127,1783004945000,2000.0,0.00030135,120]
[426909138,1783004985000,313.8,0.00029019,120]
[426909143,1783005033000,-422.2538549,0.00017483,2]
[426909141,1783005033000,-250.0,0.00017283,2]
[426909142,1783005033000,-150.0,0.00017383,2]
[426909169,1783005034000,-303.035705,0.00019011,2]
[426909165,1783005034000,-264.260098,0.00018822,2]
[426909159,1783005034000,-1000.0,0.00018821,2]
[426909181,1783005034000,-174.92,0.00021162,2]
[426909171,1783005034000,-200.0,0.00019475,2]
[426909170,1783005034000,-313.8,0.00019346,2]
[426909174,1783005034000,-300.0,0.0001998,7]
[426909176,1783005034000,-500.0,0.00020346,2]
[426909172,1783005034000,-1409.55,0.000196,2]
[426909175,1783005034000,-1626.2,0.0002,2]
[426909177,1783005034000,-3832.42,0.00020434,2]
[426909179,1783005034000,-300.0,0.000205,2]
[426909180,1783005034000,-3832.42,0.00020945,2]
[426909178,1783005034000,-150.0,0.000205,2]
[426909173,1783005034000,-1084.0,0.00019875,2]
[426909168,1783005034000,-600.0,0.00019011,2]
[426909160,1783005034000,-850.0,0.00018821,2]
[426909166,1783005034000,-699.4687736,0.00018822,2]
[426909182,1783005034000,-3832.42,0.00021455,2]
[426909148,1783005034000,-540.17773624,0.00017483,2]
[426909156,1783005034000,-1259.7297536,0.00018283,2]
[426909154,1783005034000,-174.92,0.00018139,2]
[426909157,1783005034000,-250.0,0.00018516,2]
[426909149,1783005034000,-250.0,0.00017733,2]
[426909151,1783005034000,-1559.0180978,0.00018022,2]
[426909150,1783005034000,-154.55,0.00018,2]
[426909152,1783005034000,-174.0795069,0.00018039,2]
[426909153,1783005034000,-3016.607872,0.00018092,2]
[426909155,1783005034000,-500.0,0.00018183,2]
[426909158,1783005034000,-263.0,0.0001882,2]
[426909164,1783005034000,-52771.1530595,0.00018822,2]
[426909162,1783005034000,-240.565491,0.00018822,2]
[426909163,1783005034000,-335.0164064,0.00018822,2]
[426909161,1783005034000,-4807.6127442,0.00018822,2]
[426909183,1783005034000,-1620.49,0.00021558,2]
[426909167,1783005034000,-250.0,0.00019011,2]
[426909187,1783005034000,-525.07514242,0.00021806,2]
[426909204,1783005034000,-500.0,0.00021806,2]
[426909205,1783005034000,-500.0,0.00021806,2]
[426909206,1783005034000,-500.0,0.00021806,2]
[426909212,1783005034000,-500.0,0.00021806,2]
[426909213,1783005034000,-500.0,0.00021806,2]
[426909207,1783005034000,-500.0,0.00021806,2]
[426909211,1783005034000,-500.0,0.00021806,2]
[426909208,1783005034000,-500.0,0.00021806,2]
[426909214,1783005034000,-450.0,0.00021806,2]
[426909209,1783005034000,-500.0,0.00021806,2]
[426909216,1783005034000,-500.0,0.00021806,2]
[426909217,1783005034000,-500.0,0.00021806,2]
[426909215,1783005034000,-500.0,0.00021806,2]
[426909219,1783005034000,-500.0,0.00021806,2]
[426909184,1783005034000,-2257.39307943,0.000217,2]
[426909201,1783005034000,-500.0,0.00021806,2]
[426909202,1783005034000,-313.62106439,0.00021806,2]
[426909210,1783005034000,-500.0,0.00021806,2]
[426909218,1783005034000,-500.0,0.00021806,2]
[426909198,1783005034000,-500.0,0.00021806,2]
[426909190,1783005034000,-500.0,0.00021806,2]
[426909185,1783005034000,-313.8,0.00021764,2]
[426909188,1783005034000,-150.21447496,0.00021806,2]
[426909186,1783005034000,-197.61618393,0.00021806,2]
[426909191,1783005034000,-500.0,0.00021806,2]
[426909189,1783005034000,-500.0,0.00021806,2]
[426909193,1783005034000,-162.32479247,0.00021806,2]
[426909194,1783005034000,-500.0,0.00021806,2]
[426909195,1783005034000,-500.0,0.00021806,2]
[426909196,1783005034000,-500.0,0.00021806,2]
[426909200,1783005034000,-500.0,0.00021806,2]
[426909197,1783005034000,-500.0,0.00021806,2]
[426909199,1783005034000,-500.0,0.00021806,2]
[426909192,1783005034000,-500.0,0.00021806,2]
[426909203,1783005034000,-500.0,0.00021806,2]
[426909231,1783005035000,-500.0,0.00021806,2]
[426909241,1783005035000,-500.0,0.00021806,2]
[426909232,1783005035000,-500.0,0.00021806,2]
[426909238,1783005035000,-500.0,0.00021806,2]
[426909235,1783005035000,-500.0,0.00021806,2]
[426909237,1783005035000,-500.0,0.00021806,2]
[426909239,1783005035000,-500.0,0.00021806,2]
[426909243,1783005035000,-500.0,0.00021806,2]
[426909229,1783005035000,-500.0,0.00021806,2]
[426909244,1783005035000,-500.0,0.00021806,2]
[426909236,1783005035000,-500.0,0.00021806,2]
[426909233,1783005035000,-500.0,0.00021806,2]
[426909224,1783005035000,-500.0,0.00021806,2]
[426909234,1783005035000,-500.0,0.00021806,2]
[426909230,1783005035000,-293.01396105,0.00021806,2]
[426909227,1783005035000,-500.0,0.00021806,2]
[426909228,1783005035000,-500.0,0.00021806,2]
[426909226,1783005035000,-500.0,0.00021806,2]
[426909225,1783005035000,-500.0,0.00021806,2]
[426909220,1783005035000,-500.0,0.00021806,2]
[426909223,1783005035000,-500.0,0.00021806,2]
[426909221,1783005035000,-500.0,0.00021806,2]
[426909222,1783005035000,-500.0,0.00021806,2]
[426909253,1783005035000,-500.0,0.00021806,2]
[426909240,1783005035000,-500.0,0.00021806,2]
[426909245,1783005035000,-500.0,0.00021806,2]
[426909254,1783005035000,-500.0,0.00021806,2]
[426909246,1783005035000,-500.0,0.00021806,2]
[426909272,1783005035000,-1605.16,0.00018822,2]
[426909270,1783005035000,-959.58057949,0.00021808,2]
[426909269,1783005035000,-3937.06871101,0.00021808,2]
[426909271,1783005035000,-472.67372686,0.00018822,2]
[426909242,1783005035000,-500.0,0.00021806,2]
[426909266,1783005035000,-51857.58966918,0.00021808,2]
[426909267,1783005035000,-83727.15960773,0.00021808,2]
[426909263,1783005035000,-500.0,0.00021807,2]
[426909261,1783005035000,-467.84700824,0.00021807,2]
[426909256,1783005035000,-500.0,0.00021806,2]
[426909265,1783005035000,-27860.13998356,0.00021808,2]
[426909257,1783005035000,-500.0,0.00021806,2]
[426909268,1783005035000,-19068.26599641,0.00021808,2]
[426909255,1783005035000,-500.0,0.00021806,2]
[426909247,1783005035000,-500.0,0.00021806,2]
[426909258,1783005035000,-500.0,0.00021806,2]
[426909252,1783005035000,-500.0,0.00021806,2]
[426909251,1783005035000,-500.0,0.00021806,2]
[426909248,1783005035000,-500.0,0.00021806,2]
[426909250,1783005035000,-500.0,0.00021806,2]
[426909260,1783005035000,-317.33620283,0.00021807,2]
[426909259,1783005035000,-307.74199267,0.00021807,2]
[426909262,1783005035000,-353.96771295,0.00021807,2]
[426909264,1783005035000,-500.0,0.00021807,2]
[426909249,1783005035000,-500.0,0.00021806,2]
[426909287,1783005038000,-3832.42,0.00022477,2]
[426909283,1783005038000,-173.15,0.00022304,2]
[426909291,1783005038000,-999.99,0.00022562,2]
[426909288,1783005038000,-9552.31,0.00022562,5]
[426909286,1783005038000,-7479.54,0.00022396,2]
[426909282,1783005038000,-603.01,0.00022247,2]
[426909284,1783005038000,-996.46,0.00022352,2]
[426909277,1783005038000,-105888.27545262,0.00021808,2]
[426909276,1783005038000,-190.95,0.0001918,2]
[426909278,1783005038000,-17295.82145354,0.00021866,2]
[426909280,1783005038000,-3832.42,0.00021966,2]
[426909281,1783005038000,-241.8,0.0002199,2]
[426909274,1783005038000,-3173.45,0.00018822,2]
[426909275,1783005038000,-25962.00191714,0.00018822,2]
[426909285,1783005038000,-199.5,0.00022383,2]
[426909289,1783005038000,-8611.21,0.00022562,2]
[426909279,1783005038000,-5000.0,0.00021918,2]
[426909290,1783005038000,-299.99,0.00022562,7]
[426909300,1783005038000,-4999.99,0.00022562,2]
[426909293,1783005038000,-8132.62,0.00022562,2]
[426909292,1783005038000,-809.92,0.00022562,2]
[426909308,1783005038000,-1309.32291736,0.00023471,2]
[426909307,1783005038000,-1743.98335304,0.00023333,2]
[426909305,1783005038000,-1581.5,0.00023116,7]
[426909306,1783005038000,-3171.55,0.00023206,2]
[426909303,1783005038000,-150.0,0.00023031,2]
[426909301,1783005038000,-200.0,0.00022876,2]
[426909302,1783005038000,-1743.98335304,0.00023,2]
[426909304,1783005038000,-17295.82145346,0.00023092,2]
[426909312,1783005038000,-150.0,0.000235,2]
[426909310,1783005038000,-150.0,0.000235,2]
[426909299,1783005038000,-9999.99,0.00022562,2]
[426909296,1783005038000,-31587.91,0.00022562,2]
[426909297,1783005038000,-887.95,0.00022562,2]
[426909295,1783005038000,-29712.72,0.00022562,2]
[426909298,1783005038000,-9999.99,0.00022562,2]
[426909294,1783005038000,-4939.22,0.00022562,2]
[426909385,1783005039000,-154.05359121,0.00024816,7]
[426909377,1783005039000,-500.0,0.00024658,2]
[426909386,1783005039000,-159.68547244,0.00024888,2]
[426909384,1783005039000,-763.49,0.00024673,7]
[426909376,1783005039000,-1244.15766067,0.00024647,7]
[426909365,1783005039000,-500.0,0.000242,2]
[426909361,1783005039000,-313.8,0.00024183,2]
[426909359,1783005039000,-150.0,0.00024176,2]
[426909370,1783005039000,-220.83058827,0.00024333,30]
[426909371,1783005039000,-500.0,0.00024392,2]
[426909387,1783005039000,-195.61772232,0.00024888,2]
[426909363,1783005039000,-174.92,0.00024186,2]
[426909375,1783005039000,-34559.7297536,0.00024554,2]
[426909389,1783005039000,-157.00024689,0.00024888,2]
[426909379,1783005039000,-169.7,0.00024658,2]
[426909381,1783005039000,-234.81,0.00024658,2]
[426909378,1783005039000,-501.451067,0.00024658,2]
[426909388,1783005039000,-163.74508613,0.00024888,2]
[426909383,1783005039000,-1743.98335304,0.00024667,2]
[426909390,1783005039000,-189.64839241,0.00024901,2]